[Event "SixDays Budapest IM-A 11-2024"]
[Site "Budapest"]
[Date "2024.11.23"]
[Round "3.2"]
[White "Kolimar, Kristof Pal"]
[Black "Fodor, Balazs"]
[Result "1/2-1/2"]
[ECO "D02"]
[WhiteElo "2286"]
[BlackElo "2206"]
[Annotator "RC"]
[PlyCount "95"]
[EventDate "2024.11.20"]
[EventType "tourn"]
[EventCountry "HUN"]
[SourceTitle "playchess.com"]
[Source "ChessBase"]
[SourceQuality "1"]
[TimeControl "5400+30"]

1. d4 {[%emt 0:00:03]} d5 {[%emt 0:03:29]} 2. Nf3 {[%emt 0:00:09]} Nf6 {[%emt 0:00:08]} 3. c4 {[%emt 0:00:04]} c6 {[%emt 0:00:06]} 4. Qb3 {[%emt 0:00:28]} dxc4 {[%emt 0:00:29]} 5. Qxc4 {[%emt 0:00:05]} Bf5 {[%emt 0:00:06]} 6. g3 {[%emt 0:00:46]} e6 {[%emt 0:00:08]} 7. Bg2 {[%emt 0:00:04]} Be7 {[%emt 0:00:16]} 8. O-O {[%emt 0:00:44]} O-O {[%emt 0:00:08]} 9. Nc3 {[%emt 0:00:08]} Nbd7 {[%emt 0:00:16]} 10. Re1 {[%emt 0:00:06]} Ne4 {[%emt 0:11:27]} 11. Bf4 {[%emt 0:00:19]} Nxc3 {[%emt 0:06:53]} 12. bxc3 {[%emt 0:00:07]} Be4 {[%emt 0:00:07]} 13. Qb3 {[%emt 0:02:13]} Qb6 {[%emt 0:02:29]} 14. Bh3 {[%emt 0:08:15]} Qxb3 {[%emt 0:14:09]} 15. axb3 {[%emt 0:00:05]} Nf6 {[%emt 0:18:18]} 16. Ne5 {[%emt 0:18:23]} h6 {[%emt 0:12:12]} 17. f3 {[%emt 0:03:06]} Bh7 {[%emt 0:00:05]} 18. e4 {[%emt 0:08:51]} Rfd8 {[%emt 0:05:03]} 19. Nc4 {[%emt 0:11:02]} g5 {[%emt 0:08:42]} 20. Bc7 {[%emt 0:01:56]} Rdc8 {[%emt 0:00:26]} 21. Bd6 {[%emt 0:00:22]} Bxd6 {[%emt 0:01:25]} 22. Nxd6 {[%emt 0:00:02]} Rc7 {[%emt 0:00:07]} 23. b4 {[%emt 0:06:12]} a6 {[%emt 0:00:26]} 24. Ra5 {[%emt 0:05:50]} Rd8 {[%emt 0:00:29]} 25. Nc4 {[%emt 0:00:11]} Kg7 {[%emt 0:01:20]} 26. Kf2 {[%emt 0:02:10]} Re7 {[%emt 0:01:32]} 27. Bg2 {[%emt 0:01:45]} Ne8 {[%emt 0:04:50]} 28. f4 {[%emt 0:06:23]} f6 {[%emt 0:04:51]} 29. h4 {[%emt 0:09:21]} gxf4 {[%emt 0:00:36]} 30. gxf4 {[%emt 0:00:02]} Nc7 {[%emt 0:00:15]} 31. Re3 {[%emt 0:02:36]} Nb5 {[%emt 0:00:11]} 32. Ra1 {[%emt 0:01:21]} Kh8 {[%emt 0:01:32]} 33. Bh3 {[%emt 0:01:59]} Rg8 {[%emt 0:01:18]} 34. Rg1 {[%emt 0:02:39]} Rxg1 {[%emt 0:00:07]} 35. Kxg1 {[%emt 0:00:02]} Bg8 {[%emt 0:00:50]} 36. e5 {[%emt 0:03:26]} f5 {[%emt 0:00:06]} 37. Na5 {[%emt 0:02:17]} Bf7 {[%emt 0:01:02]} 38. Bg2 {[%emt 0:01:39]} Be8 {[%emt 0:00:26]} 39. Rg3 {[%emt 0:01:19]} Rc7 {[%emt 0:01:06]} 40. Kf2 {[%emt 0:00:58]} Kh7 {[%emt 0:00:23]} 41. Ke1 {[%emt 0:00:41]} Bh5 {[%emt 0:00:31]} 42. Bf1 {[%emt 0:02:22]} Na7 {[%emt 0:00:59]} 43. Bc4 {[%emt 0:00:32]} Bf7 {[%emt 0:00:44]} 44. Nb3 {[%emt 0:00:18]} Nc8 {[%emt 0:00:13]} 45. Nc5 {[%emt 0:00:37]} Re7 {[%emt 0:00:05]} 46. Bb3 {[%emt 0:00:30]} Nb6 {[%emt 0:00:41]} 47. c4 {[%emt 0:00:54]} Nd7 {[%emt 0:00:07]} 48. Nd3 {[%emt 0:00:08]} 1/2-1/2

[Event "SixDays Budapest IM-A 11-2024"]
[Site "Budapest"]
[Date "2024.11.23"]
[Round "3.3"]
[White "Otsuka, Shou"]
[Black "Krishna C R G"]
[Result "1-0"]
[ECO "C01"]
[WhiteElo "2248"]
[BlackElo "2448"]
[Annotator "TA"]
[PlyCount "91"]
[EventDate "2024.11.20"]
[EventType "tourn"]
[EventCountry "HUN"]
[SourceTitle "playchess.com"]
[Source "ChessBase"]
[SourceQuality "1"]
[TimeControl "5400+30"]

{[%evp 30,91,0,0,0,0,0,0,0,0,12,6,25,24,56,50,39,49,42,55,64,30,25,22,47,28,28,6,32,16,31,29,19,17,48,0,14,0,0,0,18,0,0,0,0,0,0,0,0,0,193,187,575,587,29988,2637,29989,0,0,0,29990,29991,29991,29989]} 1. e4 {[%emt 0:01:03]} e6 {[%emt 0:05:24]} 2. d4 {[%emt 0:00:04]} d5 {[%emt 0:00:03]} 3. exd5 {[%emt 0:00:05]} exd5 {[%emt 0:00:05]} 4. Nf3 {[%emt 0:00:04]} Bd6 {[%emt 0:02:08]} 5. c4 {[%emt 0:00:40]} Nf6 {[%emt 0:00:02]} 6. c5 {[%emt 0:00:16]} Be7 {[%emt 0:00:01]} 7. Qa4+ {[%emt 0:00:12] C01: French: Exchange Variation.} c6 {[%emt 0:01:50]} 8. Bd3 {[%emt 0:00:49]} O-O {[%emt 0:01:29]} 9. Nc3 {[%emt 0:02:31]} b6 {[%emt 0:19:32]} 10. cxb6 {[%emt 0:00:06]} Qxb6 {[%emt 0:00:02]} 11. O-O {[%emt 0:04:57]} Ba6 {[%emt 0:00:47]} 12. Bxa6 $146 {[%emt 0:10:30]} ({Predecessor:} 12. Qc2 Bxd3 13. Qxd3 Na6 14. b3 Nb4 15. Qf5 g6 16. Qf4 Nd3 17. Qe3 Nxc1 18. Qxe7 Ne4 19. Raxc1 Qb4 20. Qxb4 {1-0 Saya,E (2195)-Clawitter,C (2050) Titled Tuesday intern op 15th Nov Early blitz 2022 (5)}) 12... Nxa6 {[%emt 0:00:02]} 13. Ne5 {[%emt 0:01:20]} Rac8 {[%emt 0:10:58]} 14. Bg5 {[%emt 0:18:11]} Nb8 {[%emt 0:00:02]} 15. Nd3 {[%emt 0:06:47]} Nbd7 {[%emt 0:01:49]} 16. Rfe1 {[%emt 0:00:54]} Rfe8 {[%emt 0:08:56]} 17. Re2 {[%emt 0:04:56]} Bd6 {[%emt 0:05:18]} 18. Rae1 {[%emt 0:00:16]} Rxe2 {[%emt 0:00:06]} 19. Rxe2 {[%emt 0:00:17]} Qb8 {[%emt 0:01:01]} 20. g3 {[%emt 0:01:30]} Nb6 {[%emt 0:02:05]} 21. Qa6 {[%emt 0:01:21]} Nfd7 {[%emt 0:00:02]} 22. Bf4 {[%emt 0:02:28]} Bxf4 {[%emt 0:07:02]} 23. Nxf4 {[%emt 0:00:02]} g6 {[%emt 0:00:01]} 24. b3 {[%emt 0:01:09]} Re8 {[%emt 0:00:20]} 25. a4 {[%emt 0:09:14]} Rxe2 {[%emt 0:01:24]} 26. Ncxe2 {[%emt 0:00:27]} Qc7 {[%emt 0:01:05]} 27. Qd3 {[%emt 0:00:52]} Nc8 {[%emt 0:01:34]} 28. Qc2 {[%emt 0:05:46]} Qb7 {[%emt 0:01:59]} 29. Nd3 {[%emt 0:01:02]} Nd6 {[%emt 0:01:17]} 30. Kg2 {[%emt 0:01:22]} Nf5 {[%emt 0:06:06]} 31. Qc3 {[%emt 0:01:52]} h5 {[%emt 0:01:40]} 32. Ng1 {[%emt 0:01:54]} (32. Nef4 $14 {might be stronger.}) 32... Nf6 {[%emt 0:02:20]} 33. Ne5 {[%emt 0:03:57]} Ne7 {[%emt 0:00:03]} 34. Qa5 {[%emt 0:03:32]} Kg7 {[%emt 0:05:00]} 35. Qd8 {[%emt 0:00:53]} Nf5 {[%emt 0:00:02]} 36. Ngf3 {[%emt 0:00:06]} Ne4 $1 {[%emt 0:00:00]} (36... Qxb3 $2 37. Qc7 (37. Nxc6 $2 Qc2 $19) 37... Nh6 38. Ng5 $18 (38. Qxc6 Ne4 $17)) 37. Nd7 {[%emt 0:13:28]} Qb4 $1 {[%emt 0:00:02]} 38. a5 {[%emt 0:00:28]} Qa3 {[%emt 0:10:42]} 39. a6 {[%emt 0:01:18]} Nh6 $2 {[%emt 0:04:28] [#]} (39... Qe7 $11 40. Qc7 h4 41. Qe5+ (41. Qxa7 h3+ 42. Kf1 Nc3 43. Nde5 Qxa7 44. Ke1 Qxa6 45. Kd2 Ne4+ 46. Kc1 Qa1+ 47. Kc2 Nxd4+ 48. Nxd4 Qa2+ 49. Kc1 Qd2+ 50. Kb1 Nc3+ 51. Ka1 Qc1#) 41... Qxe5 42. Ndxe5 hxg3) 40. Qb8 $1 $18 {[%emt 0:00:59]} Ng4 $2 {[%emt 0:00:35]} (40... Kh7 {is more resistant.}) 41. b4 $18 {[%emt 0:00:47]} (41. Qxa7 Qb2 (41... Qxb3 $2 42. Qb8 $18) 42. Kh3 Ng5+ (42... Qxf2 43. Nde5 Nxe5 44. dxe5 Qxf3 45. Qe3 Nf2+ 46. Qxf2 Qxf2 47. b4 g5 48. g4 Qf3#) 43. Nxg5 Qxf2 44. Kh4 Qxh2+ 45. Nh3 Kh6 46. Nf8 g5#) 41... f6 {[%emt 0:01:02]} 42. Qf8+ {[%emt 0:00:24]} (42. Qxa7 g5 $11) 42... Kh7 {[%emt 0:00:01]} 43. Qf7+ $2 {[%emt 0:01:57]} (43. Nh4 Ne3+ 44. Kf3 (44. fxe3 Qb2+ 45. Kh1 Qc1+ 46. Kg2 Qd2+ 47. Kh1 Qe1+ 48. Kg2 Qf2+ 49. Kh3 Ng5#) 44... Ng4+ 45. Kg2 Ne3+ 46. Kf3 (46. fxe3 Qb2+ 47. Kh1 Qc1+ 48. Kg2 Qd2+ 49. Kh1 Qe1+ 50. Kg2 Qf2+ 51. Kh3 Ng5#) 46... Ng5+ 47. Ke2 Qxa6+ 48. Kxe3 Qa3+ 49. Ke2 Qa2+ 50. Kf1 Qb1+ 51. Kg2 Qe4+ 52. Kg1 (52. Kf1 Qh1+ 53. Ke2 Qe4+ 54. Kf1 Qh1+ 55. Ke2 Qe4+ 56. Kd2 Qxd4+ 57. Ke1 Qc3+ 58. Kf1 Qd3+ 59. Kg1 Qb1+ 60. Kg2 Qe4+ 61. Kf1 Qd3+ 62. Kg2 Qe4+ 63. Kg1 Nh3+ 64. Kf1 Qh1+ 65. Ke2 Qe4+ 66. Kf1 Qh1+ 67. Ke2 Qe4+ 68. Kf1 $11) 52... Nh3+ 53. Kf1 Qh1+ 54. Ke2 Qe4+ 55. Kd2 Qxd4+ 56. Kc2 Qe4+ 57. Kd2 Qd4+ 58. Kc2 Qc4+ 59. Kd2 Qd4+ $11) (43. Nxf6+ {mates} Ngxf6 44. Qf7+ (44. Ne5 Ng5 45. Qxf6 Qxb4 46. Qxg6+ Kh8 47. Qf6+ Kh7 48. h4 Qb8 49. Qg6+ Kh8) 44... Kh8 45. Ne5 (45. Qxa7 Qa2 $17) 45... Qf3+ 46. Nxf3 (46. Kxf3 Ng5+ 47. Kf4 Nxf7 $18) 46... Ng8 47. Ne5 (47. Qxa7 g5 48. Ne5 Nh6 49. Qc7 h4 50. a7 h3+ 51. Kg1 Nf6 52. a8=Q+ Ne8 53. Qxe8+ Ng8 54. Ng6#) 47... Ne7 48. Qxe7) 43... Kh6 $11 {[%emt 0:00:01]} 44. Qf8+ $2 {[%emt 0:00:05][%mdl 8192]} (44. Nh4 $2 Ne3+ 45. Kf3 Ng5+ 46. Ke2 Nxf7 $19) (44. Qg8 $11 g5 45. Qh8+ (45. Nf8 Ne3+ 46. fxe3 Qb2+ 47. Kh1 Nf2+ 48. Kg2 Ng4+ 49. Kh3 Nf2+ 50. Kg2 Ng4+ 51. Kh3 Nf2+ 52. Kg2 $11) 45... Kg6 46. Qg8+ Kh6 47. Qh8+ (47. Nf8 Ne3+ 48. fxe3 Qa2+ 49. Kh1 Nf2+ 50. Kg1 Nh3+ 51. Kh1 Nf2+ 52. Kg1 Nh3+ 53. Kh1 Nf2+ $11) 47... Kg6 48. Qe8+ Kh6 49. Qf8+ Kg6 50. Qg8+ Kh6) 44... Kh7 {[%emt 0:00:01]} 45. Nxf6+ {[%emt 0:01:25]} ({Weaker is} 45. Nh4 Ne3+ 46. Kf3 (46. fxe3 {leads to mate.} Qb2+ 47. Kh1 Qc1+ 48. Kg2 Qd2+ 49. Kh1 Qe1+ 50. Kg2 Qf2+ 51. Kh3 Ng5#) 46... Ng5+ 47. Ke2 Qb2+ 48. Kxe3 Qc3+ 49. Ke2 Qc4+ 50. Ke1 Qc1+ 51. Ke2 Qb2+ 52. Kf1 Qb1+ 53. Ke2 Qc2+ 54. Kf1 Qb1+ 55. Kg2 (55. Ke2 Qa2+ 56. Kf1 Qb1+ $11) 55... Qe4+ 56. Kf1 Qh1+ 57. Ke2 Qe4+ 58. Kd2 Qxd4+ 59. Ke2 Qe4+ 60. Kf1 Qh1+ 61. Ke2 Qe4+ 62. Kf1 Qb1+ 63. Kg2 (63. Ke2 Qc2+ 64. Kf1 Qb1+ 65. Kg2 Qe4+ 66. Kg1 Qb1+ 67. Kg2 Qe4+ 68. Kg1 Nh3+ 69. Kf1 Qh1+ 70. Ke2 Qe4+ 71. Kf1 Qh1+ 72. Ke2 Qe4+ 73. Kd2 Qd4+ 74. Kc2 Qc4+ 75. Kd2 Qa2+ 76. Ke3 Qb3+ 77. Kd2 Qa2+ 78. Kc1 Qc4+ 79. Kd2 Qa2+ $11) 63... Qe4+ 64. Kg1 (64. Kf1 Qh1+ 65. Ke2 Qe4+ $11) 64... Nh3+ 65. Kf1 Qh1+ 66. Ke2 Qe4+ 67. Kf1 (67. Kd2 Qd4+ 68. Ke1 Qa1+ 69. Kd2 Qb2+ 70. Ke3 Qc3+ 71. Ke2 Qc2+ 72. Ke3 Qc3+ 73. Ke2 Qb2+ 74. Ke1 Qc1+ 75. Ke2 Ng1+ 76. Kd3 Qf1+ 77. Kd2 Qe2+ 78. Kc3 Qc4+ 79. Kb2 Qd4+ 80. Kc2 Qc4+ 81. Kb2 Qe2+ 82. Kc1 Qc4+ 83. Kb2 $11) 67... Qh1+ 68. Ke2 Qe4+ 69. Kf1 $11 (69. Kd2 Qd4+ 70. Kc2 Qc4+ 71. Kd2 Qd4+ 72. Kc2 Qc4+ 73. Kd2 Qa2+ 74. Kc3 d4+ 75. Kxd4 Qd2+ 76. Kc4 Qc2+ 77. Kd4 Qd1+ 78. Kc3 Qc1+ 79. Kd3 Qd1+ 80. Kc3 Qe1+ 81. Kd4 Qxf2+ 82. Kd3 Qf1+ 83. Kd2 Qf2+ 84. Kd1 Qd4+ 85. Kc2 Qc4+ 86. Kd2 Qd4+ 87. Kc2 Qc4+ 88. Kd2 Qd4+ 89. Kc2 $11)) 45... Ngxf6 {[%emt 0:00:13]} 46. Ne5 {[%emt 0:00:01]} 1-0

[Event "SixDays Budapest IM-A 11-2024"]
[Site "Budapest"]
[Date "2024.11.23"]
[Round "3.4"]
[White "Mahitosh Dey"]
[Black "Wang, Hao(ZJ)"]
[Result "1-0"]
[ECO "B90"]
[WhiteElo "2220"]
[BlackElo "2095"]
[Annotator "RC"]
[PlyCount "61"]
[EventDate "2024.11.20"]
[EventType "tourn"]
[EventCountry "HUN"]
[SourceTitle "playchess.com"]
[Source "ChessBase"]
[SourceQuality "1"]
[TimeControl "5400+30"]

1. e4 {[%emt 0:12:10]} c5 {[%emt 0:00:16]} 2. Nf3 {[%emt 0:00:05]} d6 {[%emt 0:00:06]} 3. d4 {[%emt 0:00:03]} cxd4 {[%emt 0:00:07]} 4. Nxd4 {[%emt 0:00:04]} Nf6 {[%emt 0:00:09]} 5. Nc3 {[%emt 0:00:02]} a6 {[%emt 0:00:10]} 6. Nb3 {[%emt 0:00:03]} e5 {[%emt 0:00:16]} 7. Bg5 {[%emt 0:00:06]} Be6 {[%emt 0:00:21]} 8. f4 {[%emt 0:00:05]} Nbd7 {[%emt 0:07:10]} 9. f5 {[%emt 0:01:11]} Bxb3 {[%emt 0:00:07]} 10. axb3 {[%emt 0:00:02]} Be7 {[%emt 0:00:15]} 11. Bc4 {[%emt 0:01:52]} O-O {[%emt 0:02:09]} 12. Bxf6 {[%emt 0:03:33]} Nxf6 {[%emt 0:01:11]} 13. O-O {[%emt 0:00:33]} Rc8 {[%emt 0:00:33]} 14. Bd5 {[%emt 0:01:42]} Qc7 {[%emt 0:01:57]} 15. Rf2 {[%emt 0:03:06]} Qb8 {[%emt 0:01:12]} 16. Kh1 {[%emt 0:00:58]} Bd8 {[%emt 0:01:36]} 17. g4 {[%emt 0:07:46]} Nd7 {[%emt 0:02:45]} 18. Rg2 {[%emt 0:04:55]} Bg5 {[%emt 0:08:01]} 19. h4 {[%emt 0:00:20]} Bf4 {[%emt 0:00:05]} 20. g5 {[%emt 0:00:31]} Kh8 {[%emt 0:00:27]} 21. Qh5 {[%emt 0:05:57]} Qa7 {[%emt 0:04:57]} 22. Re1 {[%emt 0:03:49]} Qd4 {[%emt 0:02:03]} 23. Qg4 {[%emt 0:05:40]} Rxc3 {[%emt 0:01:15]} 24. bxc3 {[%emt 0:00:12]} Qxc3 {[%emt 0:00:04]} 25. Rf1 {[%emt 0:00:10]} Nc5 {[%emt 0:00:39]} 26. f6 {[%emt 0:06:53]} g6 {[%emt 0:01:30]} 27. h5 {[%emt 0:01:25]} a5 {[%emt 0:03:00]} 28. hxg6 {[%emt 0:00:12]} fxg6 {[%emt 0:00:10]} 29. Qh4 {[%emt 0:00:30]} Qe3 {[%emt 0:00:27]} 30. Qg4 {[%emt 0:13:46]} b5 {[%emt 0:05:39]} 31. Qh4 1-0

[Event "SixDays Budapest IM-A 11-2024"]
[Site "Budapest"]
[Date "2024.11.23"]
[Round "3.5"]
[White "Horvath, David"]
[Black "Semprun Martinez, Fernando"]
[Result "1-0"]
[ECO "A04"]
[WhiteElo "2321"]
[BlackElo "2025"]
[Annotator "RC"]
[PlyCount "45"]
[EventDate "2024.11.20"]
[EventType "tourn"]
[EventCountry "HUN"]
[SourceTitle "playchess.com"]
[Source "ChessBase"]
[SourceQuality "1"]
[TimeControl "5400+30"]

1. Nf3 {[%emt 0:00:03]} c5 {[%emt 0:00:13]} 2. c4 {[%emt 0:00:07]} Nc6 {[%emt 0:00:36]} 3. d4 {[%emt 0:00:05]} cxd4 {[%emt 0:00:24]} 4. Nxd4 {[%emt 0:00:03]} g6 {[%emt 0:00:35]} 5. e4 {[%emt 0:00:04]} Nf6 {[%emt 0:00:47]} 6. Nc3 {[%emt 0:00:12]} d6 {[%emt 0:00:14]} 7. Be2 {[%emt 0:12:38]} Nxd4 {[%emt 0:00:02]} 8. Qxd4 {[%emt 0:00:08]} Bg7 {[%emt 0:00:06]} 9. Be3 {[%emt 0:00:33]} O-O {[%emt 0:00:10]} 10. Qd2 {[%emt 0:00:06]} Qa5 {[%emt 0:02:00]} 11. f3 {[%emt 0:01:05]} Be6 {[%emt 0:00:15]} 12. Rc1 {[%emt 0:00:19]} Rfc8 {[%emt 0:01:03]} 13. b3 {[%emt 0:03:09]} a6 {[%emt 0:00:19]} 14. Na4 {[%emt 0:00:06]} Qxd2+ {[%emt 0:00:05]} 15. Kxd2 {[%emt 0:00:06]} Nd7 {[%emt 0:00:05]} 16. g4 {[%emt 0:00:14]} f5 {[%emt 0:00:01]} 17. gxf5 {[%emt 0:00:11]} gxf5 {[%emt 0:00:08]} 18. Rhg1 {[%emt 0:00:08]} Kh8 {[%emt 0:07:25]} 19. Nc3 {[%emt 0:09:31]} fxe4 {[%emt 0:11:16]} 20. fxe4 {[%emt 0:15:11]} Nc5 {[%emt 0:09:59]} 21. Rxg7 {[%emt 0:09:59]} Kxg7 {[%emt 0:00:38]} 22. Rg1+ {[%emt 0:00:04]} Kf8 {[%emt 0:01:40]} 23. Bh5 {[%emt 0:01:25]} 1-0

[Event "SixDays Budapest IM-A 11-2024"]
[Site "Budapest"]
[Date "2024.11.24"]
[Round "4.1"]
[White "To, Nhat Minh"]
[Black "Semprun Martinez, Fernando"]
[Result "1-0"]
[ECO "C83"]
[WhiteElo "2314"]
[BlackElo "2025"]
[Annotator "RC"]
[PlyCount "45"]
[EventDate "2024.11.20"]
[EventType "tourn"]
[EventCountry "HUN"]
[SourceTitle "playchess.com"]
[Source "ChessBase"]
[SourceQuality "1"]
[TimeControl "5400+30"]

1. e4 {[%emt 0:00:03]} e5 {[%emt 0:00:03]} 2. Nf3 {[%emt 0:00:09]} Nc6 {[%emt 0:00:04]} 3. Bb5 {[%emt 0:00:31]} a6 {[%emt 0:00:01]} 4. Ba4 {[%emt 0:00:09]} Nf6 {[%emt 0:00:05]} 5. O-O {[%emt 0:00:08]} Nxe4 {[%emt 0:00:06]} 6. d4 {[%emt 0:00:06]} b5 {[%emt 0:00:01]} 7. Bb3 {[%emt 0:00:08]} d5 {[%emt 0:00:12]} 8. dxe5 {[%emt 0:00:05]} Be6 {[%emt 0:00:06]} 9. c3 {[%emt 0:00:09]} Be7 {[%emt 0:00:01]} 10. Be3 {[%emt 0:05:25]} O-O {[%emt 0:00:12]} 11. Nbd2 {[%emt 0:00:06]} Bg4 {[%emt 0:09:42]} 12. h3 {[%emt 0:00:26]} Nxd2 {[%emt 0:00:27]} 13. hxg4 {[%emt 0:00:10]} Nxf1 {[%emt 0:08:35]} 14. Kxf1 {[%emt 0:00:03]} Qd7 {[%emt 0:03:34]} 15. Qxd5 {[%emt 0:00:31]} Rad8 {[%emt 0:01:22]} 16. Qxd7 {[%emt 0:00:29]} Rxd7 {[%emt 0:00:24]} 17. e6 {[%emt 0:00:07]} Rdd8 {[%emt 0:01:49]} 18. exf7+ {[%emt 0:01:21]} Rxf7 {[%emt 0:05:55]} 19. a4 {[%emt 0:01:06]} b4 {[%emt 0:00:53]} 20. cxb4 {[%emt 0:00:51]} Nxb4 {[%emt 0:04:33]} 21. Ne5 {[%emt 0:00:12]} Nd5 {[%emt 0:00:40]} 22. Nxf7 {[%emt 0:00:11]} Kxf7 {[%emt 0:00:01]} 23. Rc1 {[%emt 0:00:16]} 1-0

[Event "SixDays Budapest IM-A 11-2024"]
[Site "Budapest"]
[Date "2024.11.24"]
[Round "4.2"]
[White "Wang, Hao"]
[Black "Horvath, David"]
[Result "1/2-1/2"]
[ECO "C11"]
[WhiteElo "2703"]
[BlackElo "2321"]
[Annotator "TA"]
[PlyCount "30"]
[EventDate "2024.11.20"]
[EventType "tourn"]
[EventCountry "HUN"]
[SourceTitle "playchess.com"]
[Source "ChessBase"]
[SourceQuality "1"]
[TimeControl "5400+30"]

{[%evp 15,30,4,8,5,11,0,0,0,6,0,0,8,0,-6,0,0,0]} 1. e4 {[%emt 0:02:45][%cal Be2e4,Be4e5][%mdl 32]} e6 {[%emt 0:00:11]} 2. d4 {[%emt 0:00:11]} d5 {[%emt 0:00:03]} 3. Nc3 {[%emt 0:00:13]} Nf6 {[%emt 0:00:08]} 4. e5 {[%emt 0:00:38]} Nfd7 {[%emt 0:00:05]} 5. f4 {[%emt 0:00:09]} c5 {[%emt 0:00:05]} 6. Nf3 {[%emt 0:00:10]} Nc6 {[%emt 0:00:03]} 7. Be3 {[%emt 0:00:08]} Be7 {[%emt 0:00:09]} 8. Qd2 {[%emt 0:00:07]} a6 {[%emt 0:00:10] The position is equal.} 9. a3 {[%emt 0:00:43]} O-O {[%emt 0:24:51]} 10. Be2 {[%emt 0:01:09]} b5 {[%emt 0:02:52]} 11. dxc5 {[%emt 0:04:58]} Nxc5 {[%emt 0:04:13]} 12. b4 {[%emt 0:00:13]} Ne4 {[%emt 0:01:24]} 13. Nxe4 {[%emt 0:01:05]} dxe4 {[%emt 0:00:05]} 14. Qxd8 {[%emt 0:07:18]} Rxd8 {[%emt 0:00:10]} 15. Nd2 {[%emt 0:00:04]} Bb7 {[%emt 0:01:08] Not much happened in this game.   Weighted Error Value: White=0.04 (flawless) /Black=0.01 (flawless) .  OK:         	White=3     	Black=3} 1/2-1/2

[Event "SixDays Budapest IM-A 11-2024"]
[Site "Budapest"]
[Date "2024.11.24"]
[Round "4.3"]
[White "Krishna C R G"]
[Black "Mahitosh Dey"]
[Result "1-0"]
[ECO "A14"]
[WhiteElo "2448"]
[BlackElo "2220"]
[Annotator "TA"]
[PlyCount "65"]
[EventDate "2024.11.20"]
[EventType "tourn"]
[EventCountry "HUN"]
[SourceTitle "playchess.com"]
[Source "ChessBase"]
[SourceQuality "1"]
[TimeControl "5400+30"]

{[%evp 18,65,-8,-31,39,0,0,0,14,0,24,12,10,14,31,35,87,83,84,55,66,75,75,73,134,133,161,151,220,218,221,229,216,193,202,206,209,221,281,251,545,441,671,535,510,539,532,532,496,488]} 1. Nf3 {[%emt 0:08:28]} d5 {[%emt 0:00:17]} 2. c4 {[%emt 0:00:10]} e6 {[%emt 0:00:12]} 3. g3 {[%emt 0:00:11]} Nf6 {[%emt 0:00:10]} 4. Bg2 {[%emt 0:00:03]} Be7 {[%emt 0:00:14]} 5. O-O {[%emt 0:00:19]} O-O {[%emt 0:00:05]} 6. b3 {[%emt 0:00:03]} d4 {[%emt 0:00:57]} 7. Bb2 {[%emt 0:01:50]} c5 {[%emt 0:00:09]} 8. e3 {[%emt 0:00:02]} Nc6 {[%emt 0:00:03]} 9. exd4 {[%emt 0:00:06]} cxd4 {[%emt 0:00:06]} 10. d3 {[%emt 0:02:49]} Qd7 {[%emt 0:01:38]} (10... e5 $15) 11. a3 {[%emt 0:05:41]} a5 $1 {[%emt 0:00:26]} 12. Re1 {[%emt 0:00:03]} Rd8 {[%emt 0:08:59] The position is equal.} 13. Nbd2 {[%emt 0:02:57]} Ra7 {[%emt 0:13:33]} 14. Ne5 {[%emt 0:15:07]} Nxe5 {[%emt 0:00:14]} 15. Rxe5 {[%emt 0:00:03]} Qc7 {[%emt 0:10:59]} 16. Nf3 {[%emt 0:15:36][%cal Od1e1]} Bc5 {[%emt 0:00:19] [#]} ({Black should play} 16... b6 $14) 17. b4 $1 $16 {[%emt 0:06:28]} axb4 {[%emt 0:00:06]} 18. axb4 {[%emt 0:00:06]} Rxa1 {[%emt 0:00:06]} 19. Qxa1 {[%emt 0:00:04]} Bxb4 {[%emt 0:00:10]} 20. Bxd4 {[%emt 0:00:06] Rg5 is the strong threat.} Be7 {[%emt 0:03:56]} (20... Bf8 $142) 21. Rb5 {[%emt 0:01:58]} Re8 {[%emt 0:04:33]} 22. Ne5 {[%emt 0:03:21]} Nd7 {[%emt 0:01:02]} (22... Bd6 $16 23. Qb2 h6 24. Bxb7 Nd7) 23. Nxd7 $18 {[%emt 0:04:25]} Qxd7 {[%emt 0:00:04]} 24. Bxg7 {[%emt 0:00:24]} Qxd3 {[%emt 0:00:04] [#]} 25. Bh8 $1 $40 {[%emt 0:05:40][%mdl 128] White goes for the king.} ({Don't play} 25. Bxb7 Bxb7 26. Rxb7 Bc5) 25... Qg6 {[%emt 0:05:05] [#] Against Qg7+} 26. Be4 $1 {[%emt 0:00:03][%mdl 512]} f5 {[%emt 0:00:03]} 27. Bxb7 {[%emt 0:00:11]} Bd7 {[%emt 0:00:23]} 28. Ra5 {[%emt 0:00:32] Threatens to win with c5.} Kf7 $2 {[%emt 0:00:30]} (28... Bb4 {is a better defense.}) 29. Be5 {[%emt 0:00:29] White is clearly winning.} Bf6 {[%emt 0:00:24]} (29... Qg4 $142 30. Qc3 Rc8) 30. c5 {[%emt 0:03:29][%cal Bc4c5,Bc5c6][%mdl 32] And now c6 would win.} Bxe5 {[%emt 0:00:20]} 31. Qxe5 {[%emt 0:00:02] aiming for c6.} Qf6 {[%emt 0:00:05]} 32. Qxf6+ {[%emt 0:00:38]} Kxf6 {[%emt 0:00:08]} 33. c6 {[%emt 0:00:01] Weighted Error Value: White=0.17 (very precise) /Black=0.46.  Mistake:       	---       	Black=5      Inaccurate:     	White=2     	---        OK:         	White=7     	Black=5      Best:        	White=5     	Black=3      Strong:       	---       	Black=1      Brilliant:      	White=1     	---} 1-0

[Event "SixDays Budapest IM-A 11-2024"]
[Site "Budapest"]
[Date "2024.11.24"]
[Round "4.4"]
[White "Fodor, Balazs"]
[Black "Otsuka, Shou"]
[Result "0-1"]
[ECO "E20"]
[WhiteElo "2206"]
[BlackElo "2248"]
[Annotator "RC"]
[PlyCount "58"]
[EventDate "2024.11.20"]
[EventType "tourn"]
[EventCountry "HUN"]
[SourceTitle "playchess.com"]
[Source "ChessBase"]
[SourceQuality "1"]
[TimeControl "5400+30"]

1. d4 {[%emt 0:00:04]} Nf6 {[%emt 0:00:04]} 2. c4 {[%emt 0:00:06]} e6 {[%emt 0:00:03]} 3. Nc3 {[%emt 0:00:06]} Bb4 {[%emt 0:00:05]} 4. f3 {[%emt 0:00:34]} c5 {[%emt 0:00:21]} 5. d5 {[%emt 0:00:05]} b5 {[%emt 0:00:09]} 6. e4 {[%emt 0:00:06]} Bb7 {[%emt 0:00:56]} 7. a3 {[%emt 0:04:50]} Bxc3+ {[%emt 0:03:49]} 8. bxc3 {[%emt 0:00:06]} bxc4 {[%emt 0:00:04]} 9. Rb1 {[%emt 0:00:35]} Ba6 {[%emt 0:15:55]} 10. g4 {[%emt 0:10:00]} O-O {[%emt 0:03:23]} 11. Ne2 {[%emt 0:14:00]} Ne8 {[%emt 0:05:18]} 12. h4 {[%emt 0:10:33]} d6 {[%emt 0:03:53]} 13. Bf4 {[%emt 0:11:01]} Nd7 {[%emt 0:07:52]} 14. Bg5 {[%emt 0:05:34]} Ndf6 {[%emt 0:12:38]} 15. Qa4 {[%emt 0:05:45]} Nc7 {[%emt 0:12:46]} 16. dxe6 {[%emt 0:05:45]} fxe6 {[%emt 0:00:05]} 17. Bg2 {[%emt 0:07:34]} Qe8 {[%emt 0:09:07]} 18. Qc2 {[%emt 0:02:37]} Nd7 {[%emt 0:07:51]} 19. Rd1 {[%emt 0:04:49]} Ne5 {[%emt 0:01:13]} 20. O-O {[%emt 0:00:08]} Nd3 {[%emt 0:00:11]} 21. Be3 {[%emt 0:00:55]} Rb8 {[%emt 0:01:22]} 22. Rb1 {[%emt 0:00:18]} Rxb1 {[%emt 0:01:49]} 23. Rxb1 {[%emt 0:00:11]} d5 {[%emt 0:02:23]} 24. Ng3 {[%emt 0:02:02]} Qd7 {[%emt 0:00:59]} 25. Ne2 {[%emt 0:06:38]} e5 {[%emt 0:01:34]} 26. Rf1 {[%emt 0:00:54]} d4 {[%emt 0:00:31]} 27. Bd2 {[%emt 0:00:32]} Rb8 {[%emt 0:00:36]} 28. g5 {[%emt 0:00:55]} Rb2 {[%emt 0:00:16]} 29. Qd1 {[%emt 0:00:04]} Bb5 {[%emt 0:00:31]} 0-1